[Event "NJSK 2024 AmBm"]
[Site "Groningen, Netherlands"]
[Date "2024.05.01"]
[Round "5.7"]
[White "Hagen, Carlijn"]
[Black "Ganeshram, Nirupa"]
[Result "0-1"]
[TimeControl "90min/40moves + 30min + 30sec/move"]
[WhiteElo "1705"]
[BlackElo "1696"]

1. d4 {[%clk 01:30:57]} {[%emt 00:00:03]} Nf6 {[%clk 01:30:54]} {[%emt
00:00:06]} 2. Bf4 {[%clk 01:31:21]} {[%emt 00:00:06]} d6 {[%clk 01:31:17]}
{[%emt 00:00:08]} 3. e3 {[%clk 01:31:39]} {[%emt 00:00:11]} Nbd7 {[%clk
01:31:30]} {[%emt 00:00:17]} 4. Nf3 {[%clk 01:31:56]} {[%emt 00:00:13]} Nh5
{[%clk 01:31:10]} {[%emt 00:00:51]} 5. Bg3 {[%clk 01:32:07]} {[%emt 00:00:18]}
g6 {[%clk 01:30:38]} {[%emt 00:01:02]} 6. Be2 {[%clk 01:32:09]} {[%emt
00:00:28]} Bg7 {[%clk 01:29:26]} {[%emt 00:01:43]} 7. c3 {[%clk 01:32:08]}
{[%emt 00:00:30]} O-O {[%clk 01:28:35]} {[%emt 00:01:20]} 8. Nbd2 {[%clk
01:32:13]} {[%emt 00:00:26]} Nhf6 {[%clk 01:27:49]} {[%emt 00:01:16]} 9. Qb3
{[%clk 01:29:48]} {[%emt 00:02:55]} a5 {[%clk 01:25:43]} {[%emt 00:02:36]} 10.
a4 {[%clk 01:28:55]} {[%emt 00:01:22]} c6 {[%clk 01:21:47]} {[%emt 00:04:27]}
11. Nc4 {[%clk 01:24:29]} {[%emt 00:04:56]} Nd5 {[%clk 01:06:09]} {[%emt
00:16:09]} 12. Bd3 {[%clk 01:18:09]} {[%emt 00:06:49]} Re8 {[%clk 00:58:04]}
{[%emt 00:08:35]} 13. O-O {[%clk 01:09:44]} {[%emt 00:08:56]} N5b6 {[%clk
00:42:04]} {[%emt 00:16:31]} 14. e4 {[%clk 01:01:00]} {[%emt 00:09:13]} c5
{[%clk 00:27:02]} {[%emt 00:15:32]} 15. d5 {[%clk 00:52:43]} {[%emt 00:08:47]}
Nxc4 {[%clk 00:24:10]} {[%emt 00:03:22]} 16. Bxc4 {[%clk 00:51:45]} {[%emt
00:01:28]} Nb6 {[%clk 00:23:12]} {[%emt 00:01:28]} 17. Bb5 {[%clk 00:50:44]}
{[%emt 00:01:30]} Bd7 {[%clk 00:22:19]} {[%emt 00:01:23]} 18. Bxd7 {[%clk
00:50:45]} {[%emt 00:00:29]} Nxd7 {[%clk 00:22:43]} {[%emt 00:00:06]} 19. Rad1
{[%clk 00:49:54]} {[%emt 00:01:22]} Ra6 {[%clk 00:21:34]} {[%emt 00:01:39]} 20.
Nd2 {[%clk 00:46:26]} {[%emt 00:03:58]} Qb6 {[%clk 00:13:55]} {[%emt 00:08:09]}
21. Qc2 {[%clk 00:45:10]} {[%emt 00:01:45]} Ne5 {[%clk 00:12:57]} {[%emt
00:01:30]} 22. Bxe5 {[%clk 00:45:20]} {[%emt 00:00:19]} dxe5 {[%clk 00:12:20]}
{[%emt 00:01:07]} 23. Nc4 {[%clk 00:41:58]} {[%emt 00:03:53]} Qc7 {[%clk
00:10:05]} {[%emt 00:02:45]} 24. Qd2 {[%clk 00:40:51]} {[%emt 00:01:35]} Qd7
{[%clk 00:08:17]} {[%emt 00:02:19]} 25. f4 {[%clk 00:38:27]} {[%emt 00:02:54]}
Qxa4 {[%clk 00:06:33]} {[%emt 00:02:14]} 26. Qd3 {[%clk 00:36:24]} {[%emt
00:02:32]} exf4 {[%clk 00:06:08]} {[%emt 00:00:56]} 27. Rxf4 {[%clk 00:36:18]}
{[%emt 00:00:34]} Rf6 {[%clk 00:05:06]} {[%emt 00:01:33]} 28. Rxf6 {[%clk
00:35:14]} {[%emt 00:01:34]} Bxf6 {[%clk 00:05:16]} {[%emt 00:00:21]} 29. e5
{[%clk 00:34:57]} {[%emt 00:00:47]} Bg5 {[%clk 00:04:48]} {[%emt 00:00:58]} 30.
Qf1 {[%clk 00:29:12]} {[%emt 00:06:13]} b5 {[%clk 00:03:56]} {[%emt 00:01:25]}
31. Nb6 {[%clk 00:25:52]} {[%emt 00:03:49]} Qb3 {[%clk 00:03:42]} {[%emt
00:00:44]} 32. Rb1 {[%clk 00:24:24]} {[%emt 00:01:58]} c4 {[%clk 00:03:31]}
{[%emt 00:00:42]} 33. Nd7 {[%clk 00:24:17]} {[%emt 00:00:35]} b4 {[%clk
00:02:57]} {[%emt 00:01:05]} 34. cxb4 {[%clk 00:18:31]} {[%emt 00:06:15]} axb4
{[%clk 00:03:17]} {[%emt 00:00:11]} 35. Kh1 {[%clk 00:17:43]} {[%emt 00:01:18]}
c3 {[%clk 00:03:06]} {[%emt 00:00:40]} 36. bxc3 {[%clk 00:17:34]} {[%emt
00:00:39]} Qxc3 {[%clk 00:03:16]} {[%emt 00:00:21]} 37. Qb5 {[%clk 00:17:22]}
{[%emt 00:00:41]} Rc8 {[%clk 00:03:00]} {[%emt 00:00:47]} 38. Qf1 {[%clk
00:12:13]} {[%emt 00:05:38]} b3 {[%clk 00:02:49]} {[%emt 00:00:42]} 39. Nb6
{[%clk 00:10:47]} {[%emt 00:01:56]} Rd8 {[%clk 00:02:07]} {[%emt 00:01:11]} 40.
e6 {[%clk 00:02:00]} {[%emt 00:09:17]} f6 {[%clk 00:01:17]} {[%emt 00:01:21]}
41. Na4 {[%clk 00:00:34]} {[%emt 00:01:56]} Qd4 {[%clk 00:28:02]} {[%emt
00:03:46]} 42. Nb2 {[%clk 00:27:39]} {[%emt 00:03:24]} Rxd5 {[%clk 00:24:49]}
{[%emt 00:03:44]} 43. Rd1 {[%clk 00:27:40]} {[%emt 00:00:28]} Qe5 {[%clk
00:23:53]} {[%emt 00:01:25]} 44. Rxd5 {[%clk 00:25:40]} {[%emt 00:02:31]} Qxd5
{[%clk 00:24:14]} {[%emt 00:00:09]} 45. Qe2 {[%clk 00:25:56]} {[%emt 00:00:13]}
Qe5 {[%clk 00:22:41]} {[%emt 00:02:04]} 0-1

[Event "NJSK 2024 AmBm"]
[Site "Groningen, Netherlands"]
[Date "2024.05.01"]
[Round "5.8"]
[White "Van Apeldoorn, Vera"]
[Black "Woldhuis, Thera"]
[Result "0-1"]
[TimeControl "90min/40moves + 30min + 30sec/move"]
[WhiteElo "1601"]
[BlackElo "1662"]

1. d4 {[%clk 01:30:58]} {[%emt 00:00:02]} Nf6 {[%clk 01:30:57]} {[%emt
00:00:04]} 2. c4 {[%clk 01:31:21]} {[%emt 00:00:07]} c5 {[%clk 01:31:22]}
{[%emt 00:00:05]} 3. d5 {[%clk 01:28:07]} {[%emt 00:03:44]} e6 {[%clk
01:31:43]} {[%emt 00:00:09]} 4. Nc3 {[%clk 01:25:51]} {[%emt 00:02:45]} exd5
{[%clk 01:32:01]} {[%emt 00:00:12]} 5. cxd5 {[%clk 01:25:24]} {[%emt 00:00:58]}
d6 {[%clk 01:32:25]} {[%emt 00:00:06]} 6. e4 {[%clk 01:23:39]} {[%emt
00:02:15]} Nbd7 {[%clk 01:32:24]} {[%emt 00:00:30]} 7. Nf3 {[%clk 01:22:58]}
{[%emt 00:01:11]} g6 {[%clk 01:31:40]} {[%emt 00:01:14]} 8. Be2 {[%clk
01:20:51]} {[%emt 00:02:37]} Bg7 {[%clk 01:31:59]} {[%emt 00:00:12]} 9. O-O
{[%clk 01:20:08]} {[%emt 00:01:13]} O-O {[%clk 01:32:16]} {[%emt 00:00:13]} 10.
a3 {[%clk 01:14:32]} {[%emt 00:06:05]} a6 {[%clk 01:32:05]} {[%emt 00:00:41]}
11. a4 {[%clk 01:12:48]} {[%emt 00:02:15]} Re8 {[%clk 01:32:23]} {[%emt
00:00:12]} 12. Bd3 {[%clk 01:10:35]} {[%emt 00:02:42]} c4 {[%clk 01:32:29]}
{[%emt 00:00:24]} 13. Bc2 {[%clk 01:06:16]} {[%emt 00:04:50]} Nc5 {[%clk
01:32:37]} {[%emt 00:00:21]} 14. Re1 {[%clk 01:02:56]} {[%emt 00:03:49]} Bd7
{[%clk 01:32:18]} {[%emt 00:00:50]} 15. e5 {[%clk 00:58:22]} {[%emt 00:05:04]}
Ng4 {[%clk 01:30:19]} {[%emt 00:02:29]} 16. exd6 {[%clk 00:56:02]} {[%emt
00:02:51]} Rxe1+ {[%clk 01:30:24]} {[%emt 00:00:25]} 17. Qxe1 {[%clk 00:46:05]}
{[%emt 00:10:26]} Nb3 {[%clk 01:29:49]} {[%emt 00:01:05]} 18. Bxb3 {[%clk
00:44:02]} {[%emt 00:02:33]} cxb3 {[%clk 01:30:14]} {[%emt 00:00:06]} 19. Ra3
{[%clk 00:43:21]} {[%emt 00:01:11]} Qb6 {[%clk 01:29:54]} {[%emt 00:00:49]} 20.
h3 {[%clk 00:43:09]} {[%emt 00:00:42]} Re8 {[%clk 01:29:28]} {[%emt 00:00:56]}
21. Qf1 {[%clk 00:40:47]} {[%emt 00:02:52]} Ne5 {[%clk 01:28:57]} {[%emt
00:01:01]} 22. Nxe5 {[%clk 00:39:02]} {[%emt 00:02:14]} Bxe5 {[%clk 01:28:55]}
{[%emt 00:00:32]} 23. Bh6 {[%clk 00:36:28]} {[%emt 00:03:05]} Qxd6 {[%clk
01:28:55]} {[%emt 00:00:30]} 24. Qc1 {[%clk 00:31:13]} {[%emt 00:05:45]} Rc8
{[%clk 01:27:22]} {[%emt 00:02:03]} 25. Rxb3 {[%clk 00:21:43]} {[%emt
00:10:00]} b5 {[%clk 01:27:21]} {[%emt 00:00:31]} 26. axb5 {[%clk 00:20:46]}
{[%emt 00:01:28]} axb5 {[%clk 01:27:47]} {[%emt 00:00:04]} 27. Qd2 {[%clk
00:19:12]} {[%emt 00:02:04]} b4 {[%clk 01:27:03]} {[%emt 00:01:14]} 28. Na2
{[%emt 00:03:06]} Ra8 {[%clk 01:25:13]} 29. Nc1 {[%clk 00:17:11]} {[%emt
00:02:14]} Ra1 {[%clk 01:23:50]} {[%emt 00:01:53]} 30. Rxb4 {[%clk 00:17:08]}
{[%emt 00:00:34]} Rxc1+ {[%clk 01:23:46]} {[%emt 00:00:34]} 31. Qxc1 {[%clk
00:17:16]} {[%emt 00:00:22]} Qxb4 {[%clk 01:24:10]} {[%emt 00:00:06]} 32. Qa1
{[%clk 00:12:14]} {[%emt 00:05:32]} Bg7 {[%clk 01:23:23]} {[%emt 00:01:16]} 33.
Bxg7 {[%clk 00:11:07]} {[%emt 00:01:37]} Kxg7 {[%clk 01:23:43]} {[%emt
00:00:11]} 34. b3+ {[%clk 00:10:42]} {[%emt 00:00:55]} Kg8 {[%clk 01:24:05]}
{[%emt 00:00:09]} 35. Qa8+ {[%clk 00:10:49]} {[%emt 00:00:22]} Qf8 {[%clk
01:24:28]} {[%emt 00:00:07]} 36. Qxf8+ {[%clk 00:10:20]} {[%emt 00:00:59]} Kxf8
{[%clk 01:24:53]} {[%emt 00:00:06]} 37. f4 {[%clk 00:07:14]} {[%emt 00:03:36]}
f5 {[%clk 01:24:56]} {[%emt 00:00:27]} 38. Kf2 {[%clk 00:07:21]} {[%emt
00:00:23]} Ke7 {[%clk 01:25:18]} {[%emt 00:00:07]} 39. Ke3 {[%clk 00:07:13]}
{[%emt 00:00:39]} Kd6 {[%clk 01:25:27]} {[%emt 00:00:21]} 40. Kd4 {[%clk
00:07:08]} {[%emt 00:00:34]} h5 {[%clk 01:25:37]} {[%emt 00:00:21]} 41. h4
{[%clk 00:07:19]} {[%emt 00:00:19]} Bb5 {[%clk 01:25:40]} {[%emt 00:00:27]} 42.
g3 {[%clk 00:07:04]} {[%emt 00:00:45]} Bf1 {[%clk 01:25:44]} {[%emt 00:00:25]}
43. b4 {[%clk 00:07:09]} {[%emt 00:00:25]} Bb5 {[%clk 01:25:47]} {[%emt
00:00:28]} 44. Ke3 {[%clk 00:06:55]} {[%emt 00:00:43]} Kxd5 {[%clk 01:26:07]}
{[%emt 00:00:10]} 45. Kf3 {[%clk 00:06:04]} {[%emt 00:01:21]} Kd4 {[%clk
01:26:11]} {[%emt 00:00:27]} 46. Kf2 {[%clk 00:06:10]} {[%emt 00:00:23]} Ke4
{[%clk 01:26:29]} {[%emt 00:00:12]} 47. Kg2 {[%clk 00:06:10]} {[%emt 00:00:30]}
Ke3 {[%clk 01:26:52]} {[%emt 00:00:08]} 48. Kh2 {[%clk 00:06:14]} {[%emt
00:00:25]} Kd4 {[%clk 01:27:00]} {[%emt 00:00:23]} 49. Kg1 {[%clk 00:04:50]}
{[%emt 00:01:53]} Kc4 {[%clk 01:27:22]} {[%emt 00:00:08]} 50. Kf2 {[%clk
00:05:09]} {[%emt 00:00:10]} Kxb4 {[%clk 01:27:46]} {[%emt 00:00:06]} 51. Ke3
{[%clk 00:05:23]} {[%emt 00:00:16]} Kc4 {[%clk 01:28:12]} {[%emt 00:00:04]} 52.
Kf2 {[%clk 00:05:39]} {[%emt 00:00:14]} Kd4 {[%clk 01:28:35]} {[%emt 00:00:07]}
53. Kf3 {[%clk 00:05:43]} {[%emt 00:00:26]} Bf1 {[%clk 01:28:52]} {[%emt
00:00:14]} 54. Kf2 {[%clk 00:05:54]} {[%emt 00:00:19]} Bh3 {[%clk 01:29:20]}
{[%emt 00:00:02]} 55. Kf3 {[%clk 00:05:53]} {[%emt 00:00:31]} Bg4+ {[%clk
01:29:47]} {[%emt 00:00:02]} 56. Kf2 {[%clk 00:06:09]} {[%emt 00:00:14]} Ke4
{[%clk 01:30:15]} {[%emt 00:00:03]} 57. Kg2 {[%clk 00:06:21]} {[%emt 00:00:18]}
Ke3 {[%clk 01:30:42]} {[%emt 00:00:03]} 58. Kh2 {[%clk 00:06:30]} {[%emt
00:00:21]} Kf2 {[%clk 01:31:08]} {[%emt 00:00:03]} 59. Kh1 {[%clk 00:06:41]}
{[%emt 00:00:13]} Kxg3 {[%clk 01:31:38]} 60. Kg1 {[%clk 00:07:05]} {[%emt
00:00:13]} Kxh4 {[%clk 01:31:56]} {[%emt 00:00:11]} 61. Kh2 {[%clk 00:07:19]}
{[%emt 00:00:15]} Bd1 {[%clk 01:32:21]} {[%emt 00:00:05]} 62. Kg2 {[%clk
00:07:30]} {[%emt 00:00:19]} Kg4 {[%clk 01:32:45]} {[%emt 00:00:05]} 63. Kh2
{[%clk 00:07:37]} {[%emt 00:00:23]} Kxf4 {[%clk 01:33:11]} {[%emt 00:00:04]} 64.
Kh3 {[%clk 00:07:56]} {[%emt 00:00:12]} g5 {[%clk 01:33:34]} {[%emt 00:00:07]}
65. Kg2 {[%clk 00:08:17]} {[%emt 00:00:10]} g4 {[%clk 01:33:45]} {[%emt
00:00:19]} 66. Kh2 {[%clk 00:08:30]} {[%emt 00:00:16]} h4 {[%clk 01:34:10]}
{[%emt 00:00:06]} 67. Kg2 {[%clk 00:08:49]} {[%emt 00:00:11]} Ke3 {[%clk
01:34:22]} {[%emt 00:00:17]} 68. Kh2 {[%clk 00:08:52]} {[%emt 00:00:27]} f4
{[%clk 01:34:49]} {[%emt 00:00:04]} 69. Kg2 {[%clk 00:08:50]} {[%emt 00:00:31]}
f3+ {[%clk 01:35:04]} {[%emt 00:00:16]} 70. Kg1 {[%clk 00:08:26]} {[%emt
00:00:54]} f2+ {[%clk 01:35:23]} {[%emt 00:00:10]} 71. Kg2 {[%clk 00:08:44]}
{[%emt 00:00:12]} h3+ {[%clk 01:35:45]} {[%emt 00:00:09]} 72. Kh2 {[%clk
00:08:44]} {[%emt 00:00:30]} f1=Q {[%clk 01:36:01]} {[%emt 00:00:13]} 73. Kg3
{[%clk 00:09:07]} {[%emt 00:00:07]} Qf2 {[%clk 01:35:47]} {[%emt 00:00:14]} 0-1

[Event "NJSK 2024 AmBm"]
[Site "Groningen, Netherlands"]
[Date "2024.05.01"]
[Round "5.9"]
[White "Rutten, Lenthe"]
[Black "Liu, Chia-Yun"]
[Result "0-1"]
[TimeControl "90min/40moves + 30min + 30sec/move"]
[WhiteElo "1526"]
[BlackElo "1704"]

1. d4 {[%clk 01:30:58]} {[%emt 00:00:01]} d5 {[%clk 01:30:49]} {[%emt
00:00:11]} 2. c4 {[%clk 01:31:26]} {[%emt 00:00:02]} e6 {[%clk 01:30:59]}
{[%emt 00:00:20]} 3. Nc3 {[%clk 01:31:49]} {[%emt 00:00:07]} Nf6 {[%clk
01:30:57]} {[%emt 00:00:32]} 4. Bg5 {[%clk 01:31:54]} {[%emt 00:00:24]} Be7
{[%clk 01:31:01]} {[%emt 00:00:27]} 5. cxd5 {[%clk 01:31:31]} {[%emt 00:00:53]}
exd5 {[%clk 01:30:32]} {[%emt 00:00:59]} 6. Nf3 {[%clk 01:31:15]} {[%emt
00:00:45]} O-O {[%clk 01:28:21]} {[%emt 00:02:42]} 7. e3 {[%clk 01:30:57]}
{[%emt 00:00:47]} h6 {[%clk 01:26:39]} {[%emt 00:02:13]} 8. Bxf6 {[%clk
01:28:53]} {[%emt 00:02:33]} Bxf6 {[%clk 01:26:01]} {[%emt 00:01:08]} 9. Bd3
{[%clk 01:27:48]} {[%emt 00:01:35]} b6 {[%clk 01:22:02]} {[%emt 00:04:29]} 10.
O-O {[%clk 01:26:25]} {[%emt 00:01:51]} c5 {[%clk 01:16:37]} {[%emt 00:05:56]}
11. e4 {[%clk 01:21:46]} {[%emt 00:05:09]} cxd4 {[%clk 01:08:19]} {[%emt
00:08:49]} 12. Nxd5 {[%clk 01:21:29]} {[%emt 00:00:47]} Bg4 {[%clk 01:00:12]}
{[%emt 00:08:37]} 13. Rc1 {[%clk 01:18:13]} {[%emt 00:03:45]} Nd7 {[%clk
00:54:41]} {[%emt 00:06:01]} 14. h3 {[%clk 01:15:49]} {[%emt 00:02:53]} Bh5
{[%clk 00:50:17]} {[%emt 00:04:56]} 15. Be2 {[%clk 01:13:01]} {[%emt 00:03:18]}
Bxf3 {[%clk 00:41:52]} {[%emt 00:08:55]} 16. Nxf6+ {[%clk 01:11:37]} {[%emt
00:01:53]} Qxf6 {[%clk 00:40:59]} {[%emt 00:01:23]} 17. Bxf3 {[%clk 01:11:35]}
{[%emt 00:00:32]} Ne5 {[%clk 00:38:44]} {[%emt 00:02:46]} 18. Be2 {[%clk
01:08:46]} {[%emt 00:03:19]} Rad8 {[%clk 00:32:32]} {[%emt 00:06:42]} 19. f4
{[%clk 01:07:34]} {[%emt 00:01:41]} d3 {[%clk 00:22:52]} {[%emt 00:10:10]} 20.
Bh5 {[%clk 01:06:29]} {[%emt 00:01:34]} Nc6 {[%clk 00:21:18]} {[%emt 00:02:05]}
21. e5 {[%clk 01:03:46]} {[%emt 00:03:13]} Qe6 {[%clk 00:21:03]} {[%emt
00:00:46]} 22. Bg4 {[%clk 01:02:58]} {[%emt 00:01:16]} Qd5 {[%clk 00:20:42]}
{[%emt 00:00:52]} 23. Rc3 {[%clk 01:00:58]} {[%emt 00:02:31]} Qd4+ {[%clk
00:19:29]} {[%emt 00:01:43]} 24. Kh1 {[%clk 00:59:42]} {[%emt 00:01:45]} Nb4
{[%clk 00:19:16]} {[%emt 00:00:43]} 25. Rf3 {[%clk 00:58:12]} {[%emt 00:02:00]}
d2 {[%clk 00:18:17]} {[%emt 00:01:29]} 26. e6 {[%clk 00:55:08]} {[%emt
00:03:33]} fxe6 {[%clk 00:16:12]} {[%emt 00:02:36]} 27. Bxe6+ {[%clk 00:55:18]}
{[%emt 00:00:20]} Kh8 {[%clk 00:16:25]} {[%emt 00:00:17]} 28. a3 {[%clk
00:55:02]} {[%emt 00:00:46]} Qe4 {[%clk 00:12:56]} {[%emt 00:03:59]} 29. Rce3
{[%clk 00:53:42]} {[%emt 00:01:50]} Qc2 {[%clk 00:12:52]} {[%emt 00:00:34]} 30.
Bb3 {[%clk 00:53:00]} {[%emt 00:01:11]} Qxd1+ {[%clk 00:11:42]} {[%emt
00:01:40]} 31. Bxd1 {[%clk 00:53:15]} {[%emt 00:00:16]} Nd5 {[%clk 00:10:30]}
{[%emt 00:01:43]} 32. Rd3 {[%clk 00:52:41]} {[%emt 00:01:03]} Nf6 {[%clk
00:10:09]} {[%emt 00:00:51]} 33. Rf2 {[%clk 00:51:50]} {[%emt 00:01:21]} Rxd3
{[%clk 00:10:22]} {[%emt 00:00:17]} 0-1